fUST/lending_fUST_20250306
["ID","MTS","AMOUNT","RATE_DAILY","PERIOD"]
[355485160,1741199472828,-635.65,0.00042191,120]
[355485161,1741199472838,-264.0618776,0.00042191,120]
[355485162,1741199472847,-500.0,0.00042191,120]
[355485163,1741199472856,-469.38620216,0.00042191,120]
[355485164,1741199472865,-500.0,0.00042191,120]
[355485165,1741199472874,-289.82577052,0.00042191,120]
[355485166,1741199472884,-532.13,0.00042191,120]
[355485167,1741199472893,-624.19,0.00042191,120]
[355485168,1741199472904,-500.0,0.00042191,120]
[355485169,1741199472913,-500.0,0.00042191,120]
[355485170,1741199472922,-500.0,0.00042191,120]
[355485171,1741199472931,-763.35,0.00042191,120]
[355485172,1741199472942,-510.6,0.00042191,120]
[355485173,1741199472951,-633.09,0.00042191,120]
[355485174,1741199472961,-500.0,0.00042191,120]
[355485175,1741199472970,-500.0,0.00042191,120]
[355485176,1741199472979,-500.0,0.00042191,120]
[355485177,1741199472992,-561.69,0.00042191,120]
[355485178,1741199473001,-500.0,0.00042191,120]
[355485179,1741199473011,-500.0,0.00042191,120]
[355485180,1741199473020,-1020.48,0.00042191,120]
[355485181,1741199473031,-769.82,0.00042191,120]
[355485182,1741199473040,-500.0,0.00042191,120]
[355485183,1741199473050,-500.0,0.00042191,120]
[355485184,1741199473059,-500.0,0.00042191,120]
[355485185,1741199473069,-500.0,0.00042191,120]
[355485186,1741199473080,-670.77,0.00042191,120]
[355485187,1741199473090,-696.48,0.00042191,120]
[355485188,1741199473099,-500.0,0.00042191,120]
[355485189,1741199473109,-525.68,0.00042191,120]
[355485190,1741199473119,-525.96,0.00042191,120]
[355485191,1741199473128,-1001.25,0.00042191,120]
[355485192,1741199473138,-948.13,0.00042191,120]
[355485193,1741199473148,-883.82,0.00042191,120]
[355485194,1741199473158,-1447.54,0.00042191,120]
[355485195,1741199473168,-500.0,0.00042191,120]
[355485196,1741199473178,-526.16,0.00042191,120]
[355485197,1741199473187,-504.21,0.00042191,120]
[355485198,1741199473197,-500.0,0.00042191,120]
[355485199,1741199473207,-500.0,0.00042191,120]
[355485200,1741199473217,-519.58,0.00042191,120]
[355485201,1741199473226,-923.32,0.00042191,120]
[355485202,1741199473235,-501.58,0.00042191,120]
[355485203,1741199473245,-832.14,0.00042191,120]
[355485204,1741199473255,-986.24,0.00042191,120]
[355485205,1741199473264,-678.02,0.00042191,120]
[355485206,1741199473274,-695.18,0.00042191,120]
[355485207,1741199473283,-500.0,0.00042191,120]
[355485208,1741199473293,-672.68,0.00042191,120]
[355485209,1741199473303,-1071.65,0.00042191,120]
[355485210,1741199473313,-603.83,0.00042191,120]
[355485211,1741199473322,-4724.62,0.00042191,120]
[355485212,1741199473332,-649.95571378,0.00042191,120]
[355485213,1741199473342,-648.44,0.00042191,120]
[355485214,1741199473351,-429.59525561,0.00042191,120]
[355485215,1741199473360,-83043.63,0.00042191,7]
[355485216,1741199473370,-1902.25,0.00042191,120]
[355485217,1741199473380,-500.0,0.00042191,30]
[355485218,1741199473390,-500.0,0.00042191,120]
[355485219,1741199473402,-1312.07,0.00042191,120]
[355485220,1741199473411,-1289.95,0.00042191,120]
[355485221,1741199473421,-500.0,0.00042191,120]
[355485222,1741199473431,-2935.74,0.00042191,120]
[355485223,1741199473440,-793.54,0.00042191,120]
[355485224,1741199473451,-1301.76,0.00042191,120]
[355485225,1741199473460,-533.0,0.00042191,120]
[355485226,1741199473470,-690.71,0.00042191,120]
[355485227,1741199473479,-500.0,0.00042191,120]
[355485228,1741199473490,-533.14,0.00042191,120]
[355485229,1741199473499,-5433.15,0.00042191,30]
[355485230,1741199473509,-903.51,0.00042191,120]
[355485231,1741199473519,-928.38,0.00042191,120]
[355485232,1741199473528,-781.04,0.00042191,120]
[355485233,1741199473538,-500.0,0.00042191,120]
[355485234,1741199473548,-500.0,0.00042191,120]
[355485235,1741199473558,-2043.91,0.00042191,120]
[355485236,1741199473568,-500.0,0.00042191,120]
[355485237,1741199473578,-1406.0,0.00042191,120]
[355485238,1741199473587,-699.07,0.00042191,120]
[355485239,1741199473597,-10802.43,0.00042191,120]
[355485240,1741199473607,-1217.74,0.00042191,120]
[355485241,1741199473617,-809.31,0.00042191,120]
[355485242,1741199473628,-500.0,0.00042191,120]
[355485243,1741199473638,-500.0,0.00042191,120]
[355485244,1741199473649,-12009.0,0.00042191,120]
[355485245,1741199473661,-546.16,0.00042191,120]
[355485246,1741199473671,-548.46,0.00042191,120]
[355485247,1741199473796,-500.000112,0.00042191,120]
[355485248,1741199473806,-4710.13,0.00042191,120]
[355485249,1741199473817,-650.94,0.00042191,120]
[355485250,1741199473827,-1161.63,0.00042191,120]
[355485251,1741199473837,-999.0,0.00042191,120]
[355485252,1741199473847,-1769.05,0.00042191,120]
[355485253,1741199473856,-685.16,0.00042191,120]
[355485254,1741199473866,-500.0,0.00042191,120]
[355485255,1741199473875,-851.77,0.00042191,120]
[355485256,1741199473885,-750.24,0.00042191,120]
[355485257,1741199473894,-640.07,0.00042191,120]
[355485258,1741199473906,-1178.37,0.00042191,120]
[355485259,1741199473916,-1299.64,0.00042191,120]
[355485260,1741199473925,-527.09,0.00042191,120]
[355485261,1741199473935,-1076.88,0.00042191,120]
[355485262,1741199473944,-575.08,0.00042191,120]
[355485263,1741199473954,-682.47,0.00042191,120]
[355485264,1741199473963,-4195.73,0.00042191,120]
[355485265,1741199473973,-1647.86,0.00042191,120]
[355485266,1741199473982,-4932.7,0.00042191,120]
[355485267,1741199473993,-1324.25,0.00042191,120]
[355485268,1741199474004,-579.33,0.00042191,120]
[355485269,1741199474014,-510.89,0.00042191,120]
[355485270,1741199474024,-4682.7,0.00042191,120]
[355485271,1741199474035,-2686.17,0.00042191,120]
[355485272,1741199474044,-787.45,0.00042191,120]
[355485273,1741199474054,-899.66,0.000424,30]
[355485274,1741199474063,-500.0,0.00042465,120]
[355485275,1741199474073,-635.65,0.00042465,120]
[355485276,1741199474084,-445.92,0.00042465,120]
[355485277,1741199474095,-500.0,0.00042465,120]
[355485278,1741199474104,-532.13,0.00042465,120]
[355485279,1741199474114,-624.19,0.00042465,120]
[355485280,1741199474124,-500.0,0.00042465,120]
[355485281,1741199474134,-500.0,0.00042465,120]
[355485282,1741199474143,-398.51555215,0.00042465,120]
[355485283,1741199474155,-763.35,0.00042465,120]
[355485284,1741199474165,-510.6,0.00042465,120]
[355485285,1741199474175,-633.09,0.00042465,120]
[355485286,1741199474184,-500.0,0.00042465,120]
[355485287,1741199474194,-500.0,0.00042465,120]
[355485288,1741199474203,-193.47554901,0.00042465,120]
[355485289,1741199474213,-561.69,0.00042465,120]
[355485290,1741199474223,-500.0,0.00042465,120]
[355485291,1741199474232,-328.75724351,0.00042465,120]
[355485292,1741199474241,-1020.48,0.00042465,120]
[355485293,1741199474251,-769.82,0.00042465,120]
[355485294,1741199474260,-500.0,0.00042465,120]
[355485295,1741199474270,-500.0,0.00042465,120]
[355485296,1741199474279,-500.0,0.00042465,120]
[355485297,1741199474288,-500.0,0.00042465,120]
[355485298,1741199474298,-670.77,0.00042465,120]
[355485299,1741199474308,-696.48,0.00042465,120]
[355485300,1741199474317,-500.0,0.00042465,120]
[355485301,1741199474326,-525.96,0.00042465,120]
[355485302,1741199474336,-1001.25,0.00042465,120]
[355485303,1741199474346,-948.13,0.00042465,120]
[355485304,1741199474356,-883.82,0.00042465,120]
[355485305,1741199474366,-1447.54,0.00042465,120]
[355485306,1741199474376,-500.0,0.00042465,120]
[355485307,1741199474386,-526.16,0.00042465,120]
[355485308,1741199474396,-504.21,0.00042465,120]
[355485309,1741199474409,-303.61017218,0.00042465,120]
[355485310,1741199474418,-500.0,0.00042465,120]
[355485311,1741199474428,-519.58,0.00042465,120]
[355485312,1741199474438,-923.32,0.00042465,120]
[355485313,1741199474447,-501.58,0.00042465,120]
[355485314,1741199474457,-832.14,0.00042465,120]
[355485315,1741199474467,-986.24,0.00042465,120]
[355485316,1741199474476,-678.02,0.00042465,120]
[355485317,1741199474485,-695.18,0.00042465,120]
[355485318,1741199474495,-500.0,0.00042465,120]
[355485319,1741199474505,-672.68,0.00042465,120]
[355485320,1741199474515,-1071.65,0.00042465,120]
[355485321,1741199474524,-603.83,0.00042465,120]
[355485322,1741199474533,-4724.62,0.00042465,120]
[355485323,1741199474543,-648.44,0.00042465,120]
[355485324,1741199474553,-81925.55753874,0.00042465,7]
[355485325,1741199474573,-1118.07246126,0.00042465,7]
[355485326,1741199474583,-1902.25,0.00042465,120]
[355485327,1741199474593,-500.0,0.00042465,30]
[355485328,1741199474603,-500.0,0.00042465,120]
[355485329,1741199474612,-1312.07,0.00042465,120]
[355485330,1741199474622,-1289.95,0.00042465,120]
[355485331,1741199474631,-500.0,0.00042465,120]
[355485332,1741199474642,-2935.74,0.00042465,120]
[355485333,1741199474654,-793.54,0.00042465,120]
[355485334,1741199474664,-1301.76,0.00042465,120]
[355485335,1741199474675,-533.0,0.00042465,120]
[355485336,1741199474684,-690.71,0.00042465,120]
[355485337,1741199474694,-500.0,0.00042465,120]
[355485338,1741199474704,-533.14,0.00042465,120]
[355485339,1741199474713,-5433.15,0.00042465,30]
[355485340,1741199474723,-903.51,0.00042465,120]
[355485341,1741199474734,-928.38,0.00042465,120]
[355485342,1741199474744,-97.72772405,0.00042465,120]
[355485343,1741199474783,-683.31227595,0.00042465,120]
[355485344,1741199474793,-500.0,0.00042465,120]
[355485345,1741199474804,-500.0,0.00042465,120]
[355485346,1741199474814,-2043.91,0.00042465,120]
[355485347,1741199474825,-500.0,0.00042465,120]
[355485348,1741199474835,-1406.0,0.00042465,120]
[355485349,1741199474845,-699.07,0.00042465,120]
[355485350,1741199474855,-3361.53822607,0.00042465,120]
[355485351,1741199475178,-904.76868589,0.00037872,2]
[355485352,1741199475190,-884.65736017,0.00037872,2]
[355485353,1741199475200,-87.43068983,0.00037872,2]
[355485354,1741199475212,-1094.4445143,0.00037872,2]
[355485355,1741199475242,-193.87283515,0.00037872,2]
[355485356,1741199475253,-500.0,0.00038356,9]
[355485357,1741199475263,-500.0,0.00038356,9]
[355485358,1741199475273,-500.0,0.00038356,9]
[355485359,1741199475284,-500.0,0.00038356,9]
[355485360,1741199475294,-500.0,0.00038356,9]
[355485361,1741199475305,-591.35,0.0003863,9]
[355485362,1741199475316,-500.0,0.0003863,9]
[355485363,1741199475326,-500.0,0.0003863,9]
[355485364,1741199475335,-500.0,0.00038904,9]
[355485365,1741199475346,-500.0,0.00040547,9]
[355485366,1741199475356,-783.0,0.00040707,5]
[355485367,1741199475366,-500.0,0.00040821,9]
[355485368,1741199475377,-500.0,0.00041095,120]
[355485369,1741199475387,-500.0,0.00041369,120]
[355485370,1741199475398,-500.0,0.00041643,120]
[355485371,1741199475409,-500.0,0.00041917,120]
[355485372,1741199475419,-500.0,0.00042191,120]
[355485373,1741199475430,-7440.89177393,0.00042465,120]
[355485374,1741199475440,-1217.74,0.00042465,120]
[355485375,1741199475451,-809.31,0.00042465,120]
[355485376,1741199475461,-500.0,0.00042465,120]
[355485377,1741199475472,-500.0,0.00042465,120]
[355485378,1741199475483,-12009.0,0.00042465,120]
[355485379,1741199475494,-546.16,0.00042465,120]
[355485380,1741199475504,-548.46,0.00042465,120]
[355485381,1741199475514,-4710.13,0.00042465,120]
[355485382,1741199475525,-650.94,0.00042465,120]
[355485383,1741199475535,-1161.63,0.00042465,120]
[355485384,1741199475546,-1769.05,0.00042465,120]
[355485385,1741199475556,-685.16,0.00042465,120]
[355485386,1741199475566,-500.0,0.00042465,120]
[355485387,1741199475576,-851.77,0.00042465,120]
[355485388,1741199475586,-750.24,0.00042465,120]
[355485389,1741199475596,-640.07,0.00042465,120]
[355485390,1741199475606,-1178.37,0.00042465,120]
[355485391,1741199475616,-1299.64,0.00042465,120]
[355485392,1741199475627,-527.09,0.00042465,120]
[355485393,1741199475636,-1076.88,0.00042465,120]
[355485394,1741199475646,-575.08,0.00042465,120]
[355485395,1741199475658,-682.47,0.00042465,120]
[355485396,1741199475668,-4195.73,0.00042465,120]
[355485397,1741199475677,-1647.86,0.00042465,120]
[355485398,1741199475688,-4932.7,0.00042465,120]
[355485399,1741199475697,-1324.25,0.00042465,120]
[355485400,1741199475708,-579.33,0.00042465,120]
[355485401,1741199475718,-510.89,0.00042465,120]
[355485402,1741199475729,-4682.7,0.00042465,120]
[355485403,1741199475738,-2686.17,0.00042465,120]
[355485404,1741199475748,-787.45,0.00042465,120]
[355485405,1741199475758,-284.72,0.00042465,120]
[355485406,1741199475768,-972.03944554,0.00042466,5]
[355485407,1741199475777,-738.2501855,0.00042697,30]
[355485408,1741199475787,-500.0,0.00042739,120]
[355485409,1741199475797,-635.65,0.00042739,120]
[355485410,1741199475807,-500.0,0.00042739,120]
[355485411,1741199475816,-532.13,0.00042739,120]
[355485412,1741199475827,-624.19,0.00042739,120]
[355485413,1741199475837,-500.0,0.00042739,120]
[355485414,1741199475847,-763.35,0.00042739,120]
[355485415,1741199475856,-510.6,0.00042739,120]
[355485416,1741199475866,-633.09,0.00042739,120]
[355485417,1741199475876,-500.0,0.00042739,120]
[355485418,1741199475885,-500.0,0.00042739,120]
[355485419,1741199475895,-561.69,0.00042739,120]
[355485420,1741199475906,-500.0,0.00042739,120]
[355485421,1741199475915,-1020.48,0.00042739,120]
[355485422,1741199475925,-769.82,0.00042739,120]
[355485423,1741199475934,-500.0,0.00042739,120]
[355485424,1741199475944,-500.0,0.00042739,120]
[355485425,1741199475953,-500.0,0.00042739,120]
[355485426,1741199475963,-368.60924389,0.00042739,120]
[355485427,1741199475973,-670.77,0.00042739,120]
[355485428,1741199475983,-696.48,0.00042739,120]
[355485429,1741199475995,-500.0,0.00042739,120]
[355485430,1741199476004,-525.96,0.00042739,120]
[355485431,1741199476014,-1001.25,0.00042739,120]
[355485432,1741199476139,-948.13,0.00042739,120]
[355485433,1741199476150,-883.82,0.00042739,120]
[355485434,1741199476159,-1447.54,0.00042739,120]
[355485435,1741199476168,-500.0,0.00042739,120]
[355485436,1741199476177,-526.16,0.00042739,120]
[355485437,1741199476187,-504.21,0.00042739,120]
[355485438,1741199476196,-500.0,0.00042739,120]
[355485439,1741199476205,-519.58,0.00042739,120]
[355485440,1741199476215,-923.32,0.00042739,120]
[355485441,1741199476226,-501.58,0.00042739,120]
[355485442,1741199476235,-832.14,0.00042739,120]
[355485443,1741199476245,-986.24,0.00042739,120]
[355485444,1741199476255,-678.02,0.00042739,120]
[355485445,1741199476264,-695.18,0.00042739,120]
[355485446,1741199476273,-500.0,0.00042739,120]
[355485447,1741199476283,-1071.65,0.00042739,120]
[355485448,1741199476292,-603.83,0.00042739,120]
[355485449,1741199476302,-4724.62,0.00042739,120]
[355485450,1741199476312,-648.44,0.00042739,120]
[355485451,1741199476321,-83043.63,0.00042739,7]
[355485452,1741199476331,-1902.25,0.00042739,120]
[355485453,1741199476340,-500.0,0.00042739,30]
[355485454,1741199476349,-500.0,0.00042739,120]
[355485455,1741199476359,-1312.07,0.00042739,120]
[355485456,1741199476368,-1289.95,0.00042739,120]
[355485457,1741199476378,-500.0,0.00042739,120]
[355485458,1741199476388,-2935.74,0.00042739,120]
[355485459,1741199476398,-793.54,0.00042739,120]
[355485460,1741199476409,-1301.76,0.00042739,120]
[355485461,1741199476419,-533.0,0.00042739,120]
[355485462,1741199476429,-690.71,0.00042739,120]
[355485463,1741199476439,-500.0,0.00042739,120]
[355485464,1741199476449,-533.14,0.00042739,120]
[355485465,1741199476458,-5433.15,0.00042739,30]
[355485466,1741199476468,-903.51,0.00042739,120]
[355485467,1741199476477,-928.38,0.00042739,120]
[355485468,1741199476487,-781.04,0.00042739,120]
[355485469,1741199476497,-500.0,0.00042739,120]
[355485470,1741199476506,-500.0,0.00042739,120]
[355485471,1741199476516,-2043.91,0.00042739,120]
[355485472,1741199476525,-169.97,0.00042739,120]
[355485473,1741199476536,-1406.0,0.00042739,120]
[355485474,1741199476545,-536.57391066,0.00042739,120]
[355485958,1741200631917,-195.1224173,0.00033731,120]
[355485960,1741200631927,-241.21281166,0.00033731,2]
[355485962,1741200631939,-8.78718834,0.00033731,2]
[355485964,1741200631949,-3219.60208763,0.00034444,120]
[355485966,1741200631958,-198.0314143,0.00034984,2]
[355485968,1741200631968,-170.146869,0.00035084,2]
[355485970,1741200631977,-18447.94159253,0.00035156,2]
[355485974,1741200632002,-6452.05840747,0.00035156,2]
[355485976,1741200632011,-166.0,0.00035341,120]
[355485978,1741200632021,-446.507512,0.0003589,2]
[355485980,1741200632031,-542.14436157,0.000359,7]
[355485982,1741200632041,-171.21908108,0.000362,98]
[355485984,1741200632052,-416.66666667,0.00036832,2]
[355485986,1741200632061,-160.0,0.00037767,2]
[355485988,1741200632071,-1375.74803926,0.00037773,2]
[355485990,1741200632080,-200.981,0.00037828,2]
[355485992,1741200632089,-160.56916143,0.00037828,2]
[355485995,1741200632099,-200.0,0.0003785,2]
[355485998,1741200632108,-500.0,0.0003785,2]
[355486001,1741200632118,-500.0,0.0003785,15]
[355486004,1741200632127,-635.80810452,0.0003785,15]
[355486007,1741200632136,-222.90665968,0.0003785,15]
[355486010,1741200632146,-500.0,0.0003785,2]
[355486013,1741200632155,-500.0,0.0003785,15]
[355486016,1741200632164,-500.0,0.0003785,2]
[355486019,1741200632174,-372.03035217,0.0003785,15]
[355486023,1741200632184,-500.0,0.0003785,2]
[355486028,1741200632204,-500.0,0.0003785,15]
[355486031,1741200632214,-500.0,0.0003785,15]
[355486035,1741200632224,-500.0,0.0003785,2]
[355486038,1741200632233,-500.0,0.0003785,15]
[355486040,1741200632243,-141.53612771,0.0003785,2]
[355486042,1741200632256,-500.62665945,0.0003785,2]
[355486044,1741200632266,-500.0,0.0003785,15]
[355486046,1741200632276,-500.0,0.0003785,2]
[355486048,1741200632285,-500.0,0.0003785,15]
[355486049,1741200632295,-500.0,0.0003785,15]
[355486050,1741200632305,-500.0,0.0003785,2]
[355486052,1741200632315,-500.0,0.0003785,15]
[355486054,1741200632324,-500.0,0.0003785,2]
[355486056,1741200632334,-500.0,0.0003785,2]
[355486058,1741200632344,-500.0,0.0003785,15]
[355486059,1741200632354,-500.0,0.0003785,2]
[355486060,1741200632363,-500.0,0.0003785,2]
[355486061,1741200632373,-500.0,0.0003785,15]
[355486062,1741200632387,-500.0,0.0003785,2]
[355486063,1741200632396,-500.0,0.0003785,15]
[355486064,1741200632406,-500.0,0.0003785,2]
[355486065,1741200632415,-500.0,0.0003785,15]
[355486066,1741200632426,-500.0,0.0003785,2]
[355486067,1741200632436,-500.0,0.0003785,2]
[355486068,1741200632446,-500.0,0.0003785,2]
[355486069,1741200632455,-500.0,0.0003785,15]
[355486070,1741200632466,-500.0,0.0003785,15]
[355486071,1741200632478,-500.0,0.0003785,15]
[355486072,1741200632488,-500.0,0.0003785,15]
[355486073,1741200632500,-500.0,0.0003785,15]
[355486074,1741200632511,-500.0,0.0003785,15]
[355486075,1741200632521,-500.0,0.0003785,15]
[355486076,1741200632533,-500.0,0.0003785,15]
[355486077,1741200632542,-500.0,0.0003785,15]
[355486078,1741200632553,-500.0,0.0003785,15]
[355486079,1741200632563,-500.0,0.0003785,15]
[355486080,1741200632574,-500.0,0.0003785,15]
[355486081,1741200632584,-500.0,0.0003785,15]
[355486082,1741200632595,-500.0,0.0003785,15]
[355486083,1741200632606,-500.0,0.0003785,15]
[355486084,1741200632615,-500.0,0.0003785,15]
[355486085,1741200632625,-500.0,0.0003785,15]
[355486086,1741200632635,-500.0,0.0003785,15]
[355486087,1741200632644,-500.0,0.0003785,15]
[355486088,1741200632654,-500.0,0.0003785,15]
[355486089,1741200632663,-500.0,0.0003785,15]
[355486090,1741200632675,-500.0,0.0003785,15]
[355486091,1741200632684,-500.0,0.0003785,15]
[355486092,1741200632694,-500.0,0.0003785,15]
[355486093,1741200632704,-206.33142935,0.0003785,15]
[355486094,1741200632717,-293.66857065,0.0003785,15]
[355486095,1741200632727,-500.0,0.0003785,15]
[355486096,1741200632737,-500.0,0.0003785,15]
[355486097,1741200632747,-500.0,0.0003785,15]
[355486098,1741200632757,-500.0,0.0003785,15]
[355486099,1741200632767,-500.0,0.0003785,15]
[355486100,1741200632777,-500.0,0.0003785,15]
[355486101,1741200632787,-500.0,0.0003785,15]
[355486102,1741200632798,-244.47588325,0.0003785,15]
[355486103,1741200632808,-500.0,0.0003785,15]
[355486104,1741200632818,-500.0,0.0003785,15]
[355486105,1741200632833,-500.0,0.0003785,15]
[355486106,1741200632843,-500.0,0.0003785,15]
[355486107,1741200632852,-500.0,0.0003785,15]
[355486108,1741200632862,-500.0,0.0003785,15]
[355486109,1741200632872,-500.0,0.0003785,15]
[355486110,1741200632882,-500.0,0.0003785,15]
[355486111,1741200632893,-500.0,0.0003785,15]
[355486112,1741200632903,-500.0,0.0003785,15]
[355486113,1741200632912,-500.0,0.0003785,15]
[355486114,1741200632924,-500.0,0.0003785,15]
[355486115,1741200632934,-500.0,0.0003785,15]
[355486116,1741200632943,-500.0,0.0003785,15]
[355486117,1741200632953,-500.0,0.0003785,15]
[355486118,1741200632964,-500.0,0.0003785,15]
[355486119,1741200632973,-500.0,0.0003785,15]
[355486120,1741200632983,-500.0,0.0003785,15]
[355486121,1741200632992,-500.0,0.0003785,15]
[355486122,1741200633002,-500.0,0.0003785,15]
[355486123,1741200633012,-500.0,0.0003785,15]
[355486124,1741200633022,-174.44758832,0.0003785,15]
[355486125,1741200633032,-500.0,0.0003785,15]
[355486126,1741200633042,-500.0,0.0003785,15]
[355486127,1741200633052,-152.06880431,0.0003785,15]
[355486128,1741200633062,-1000.0,0.0003785,120]
[355486129,1741200633071,-6899.99143695,0.00037851,2]
[355486130,1741200633084,-2660.01,0.00037851,2]
[355486131,1741200633095,-325.05563696,0.00037851,2]
[355486161,1741200637759,-17648.0,0.00037851,2]
[355486169,1741200637831,-194466.94292609,0.00037851,2]
[355486171,1741200637841,-500.0,0.00037873,5]
[355486173,1741200637851,-501.67325719,0.00037873,5]
[355486176,1741200637860,-500.0,0.00037873,5]
[355486179,1741200637870,-500.0,0.00037873,5]
[355486182,1741200637879,-500.0,0.00037873,5]
[355486184,1741200637889,-1000.0,0.00037878,120]
[355486186,1741200637899,-720.82,0.000379,30]
[355486188,1741200637908,-1000.0,0.00037905,120]
[355486191,1741200637918,-1082.58,0.00037932,120]
[355486192,1741200637929,-233.09,0.0003795,2]
[355486194,1741200637938,-500.0,0.00038355,15]
[355486196,1741200637947,-623.2348857,0.00038355,15]
[355486198,1741200637957,-500.0,0.00038355,15]
[355486200,1741200637966,-500.0,0.00038355,15]
[355486202,1741200637975,-500.0,0.00038355,15]
[355486204,1741200637985,-500.0,0.00038355,15]
[355486206,1741200637995,-321.75615475,0.00038355,15]
[355486207,1741200638005,-500.0,0.00038355,15]
[355486209,1741200638014,-500.0,0.00038355,15]
[355486211,1741200638024,-331.37310295,0.00038355,15]
[355486213,1741200638033,-500.0,0.00038355,120]
[355486215,1741200638042,-201.78709757,0.00038356,9]
[355486217,1741200638051,-503.0632182,0.00038356,9]
[355486219,1741200638060,-500.0,0.00038356,9]
[355486220,1741200638069,-500.0,0.00038356,9]
[355486222,1741200638079,-500.0,0.00038356,9]
[355486224,1741200638088,-500.0,0.00038356,9]
[355486226,1741200638097,-500.0,0.00038356,9]
[355486228,1741200638106,-500.0,0.00038356,9]
[355486230,1741200638115,-150.0,0.00038356,2]
[355486232,1741200638124,-500.0,0.00038356,9]
[355486233,1741200638134,-500.0,0.00038356,9]
[355486235,1741200638143,-500.0,0.00038356,9]
[355486237,1741200638152,-500.0,0.00038356,9]
[355486239,1741200638162,-500.0,0.00038356,9]
[355486241,1741200638172,-500.0,0.00038356,9]
[355486243,1741200638181,-500.0,0.00038356,9]
[355486245,1741200638190,-500.0,0.00038356,9]
[355486247,1741200638199,-500.0,0.00038356,9]
[355486248,1741200638208,-500.0,0.00038356,9]
[355486250,1741200638218,-500.0,0.00038356,9]
[355486252,1741200638228,-500.0,0.00038356,9]
[355486254,1741200638237,-500.0,0.00038356,9]
[355486256,1741200638247,-500.0,0.00038356,9]
[355486258,1741200638257,-500.0,0.00038356,9]
[355486260,1741200638266,-500.0,0.00038356,9]
[355486262,1741200638277,-500.0,0.00038356,9]
[355486263,1741200638287,-500.0,0.00038356,9]
[355486265,1741200638296,-500.0,0.00038356,9]
[355486267,1741200638305,-500.0,0.00038356,9]
[355486269,1741200638315,-500.0,0.00038356,9]
[355486271,1741200638324,-445.0542155,0.00038356,9]
[355486273,1741200638334,-500.0,0.00038356,9]
[355486275,1741200638343,-500.0,0.00038356,9]
[355486276,1741200638352,-500.0,0.00038356,9]
[355486278,1741200638361,-196.2690269,0.00038356,9]
[355486280,1741200638370,-500.0,0.00038356,9]
[355486282,1741200638381,-500.0,0.00038356,9]
[355486284,1741200638392,-500.0,0.00038356,9]
[355486286,1741200638401,-500.0,0.00038356,9]
[355486287,1741200638411,-500.0,0.00038356,9]
[355486289,1741200638419,-500.0,0.00038356,9]
[355486291,1741200638430,-500.0,0.00038356,9]
[355486293,1741200638440,-500.0,0.00038356,9]
[355486295,1741200638449,-500.0,0.00038356,9]
[355486297,1741200638460,-500.0,0.00038356,9]
[355486299,1741200638470,-500.0,0.00038356,9]
[355486301,1741200638480,-506.68110547,0.00038356,9]